fUSD/lending_fUSD_20250804
["ID","MTS","AMOUNT","RATE_DAILY","PERIOD"]
[377249951,1754306570707,-508.94537444,0.00044657,120]
[377249952,1754306570741,-591.01838144,0.00044657,120]
[377249953,1754306570775,-995.79728188,0.00044657,120]
[377249954,1754306570810,-1487.29737415,0.00044657,120]
[377249955,1754306570845,-2692.06279033,0.00044657,120]
[377249956,1754306570878,-2381.99253844,0.00044657,120]
[377249957,1754306570911,-2413.53147333,0.00044657,120]
[377249958,1754306570943,-4614.4764495,0.00044657,120]
[377249959,1754306570976,-2267.7705257,0.00044657,120]
[377249960,1754306571013,-2667.40743926,0.00044657,120]
[377249961,1754306571045,-1791.99235741,0.00044657,120]
[377249962,1754306571077,-1827.51617945,0.00044657,120]
[377249963,1754306571110,-568.95193261,0.00044657,120]
[377249964,1754306571146,-797.88748447,0.00044657,120]
[377249965,1754306571179,-1376.02923174,0.00044657,120]
[377249966,1754306571211,-1303.78478194,0.00044657,120]
[377249967,1754306571243,-1662.8112606,0.00044657,120]
[377249968,1754306571275,-2217.84257116,0.00044657,120]
[377249969,1754306571308,-1643.18652911,0.00044657,120]
[377249970,1754306571342,-421.58975256,0.00044657,120]
[377249971,1754306571374,-5728.82107218,0.00044657,120]
[377249972,1754306571407,-1365.21491044,0.00044657,120]
[377249973,1754306571442,-1940.53808313,0.00044657,120]
[377249974,1754306571476,-916.35419384,0.00044657,120]
[377249975,1754306571510,-1555.79341734,0.00044657,120]
[377249976,1754306571542,-952.95947423,0.00044657,120]
[377249977,1754306571575,-1561.03181955,0.00044657,120]
[377249978,1754306571607,-1682.31919317,0.00044657,120]
[377249979,1754306571640,-4041.7,0.00044657,120]
[377249980,1754306571673,-681.79584558,0.00044657,120]
[377249981,1754306572036,-753.65,0.00044657,120]
[377249982,1754306572073,-994.55310998,0.00044657,120]
[377249983,1754306572106,-3172.98160182,0.00044657,120]
[377249984,1754306572138,-3111.20910968,0.00044657,120]
[377249985,1754306572170,-1679.52448459,0.00044657,120]
[377249986,1754306572201,-1270.396637,0.00044657,120]
[377249987,1754306572232,-469.73809978,0.00044657,120]
[377249988,1754306572264,-1541.68749831,0.00044657,120]
[377249989,1754306572294,-318.29223884,0.00044657,120]
[377249990,1754306572325,-3319.68167585,0.00044657,120]
[377249991,1754306572356,-496.0026787,0.00044657,120]
[377249992,1754306572388,-2264.01597615,0.00044657,120]
[377249993,1754306572424,-1990.61260383,0.00044657,120]
[377249994,1754306572458,-605.31712465,0.00044657,120]
[377249995,1754306572493,-2509.64636323,0.00044657,120]
[377249996,1754306572525,-718.40995694,0.00044657,120]
[377249997,1754306572558,-1568.37787472,0.00044657,120]
[377249998,1754306572591,-4024.41079787,0.00044657,120]
[377249999,1754306572624,-1607.70742607,0.00044657,120]
[377250000,1754306572658,-1498.08349548,0.00044657,120]
[377250001,1754306572691,-1029.78923876,0.00044657,120]
[377250002,1754306572725,-1880.15242131,0.00044657,120]
[377250003,1754306572757,-2071.6159948,0.00044657,120]
[377250004,1754306572790,-2736.5,0.00044657,120]
[377250005,1754306572825,-1863.45830203,0.00044657,120]
[377250006,1754306572857,-1402.39723226,0.00044657,120]
[377250007,1754306572890,-519.51508869,0.00044657,120]
[377250008,1754306572923,-1001.1642595,0.00044657,120]
[377250009,1754306572957,-6384.74516946,0.00044657,120]
[377250010,1754306572990,-1568.91454962,0.00044657,120]
[377250011,1754306573021,-1290.82351508,0.00044657,120]
[377250012,1754306573052,-2091.94269985,0.00044657,120]
[377250013,1754306573083,-980.31064503,0.00044657,120]
[377250014,1754306573114,-2142.14546458,0.00044657,120]
[377250015,1754306573144,-1146.4343938,0.00044657,120]
[377250016,1754306573177,-2150.00818654,0.00044657,120]
[377250017,1754306573207,-445.57031241,0.00044657,120]
[377250018,1754306573237,-2683.54114762,0.00044657,120]
[377250019,1754306573268,-1580.81514855,0.00044657,120]
[377250020,1754306573300,-589.88027267,0.00044657,120]
[377250021,1754306573331,-1625.22607532,0.00044657,120]
[377250022,1754306573361,-1328.81055507,0.00044657,120]
[377250023,1754306573395,-1405.76356584,0.00044657,120]
[377250024,1754306573425,-3167.95650625,0.00044657,120]
[377250025,1754306573456,-2014.68197107,0.00044657,120]
[377250026,1754306573489,-586.81227684,0.00044657,120]
[377250027,1754306573519,-5175.93728428,0.00044657,120]
[377250028,1754306573550,-1391.99324436,0.00044657,120]
[377250029,1754306573581,-4476.56940042,0.00044657,120]
[377250030,1754306573614,-1104.62161533,0.00044657,120]
[377250031,1754306573645,-2248.90204591,0.00044657,120]
[377250032,1754306573677,-1737.61114651,0.00044657,120]
[377250033,1754306573710,-636.37782116,0.00044657,120]
[377250034,1754306573743,-436.2002957,0.00044657,120]
[377250035,1754306573777,-1733.8315658,0.00044657,120]
[377250036,1754306573810,-2109.71849597,0.00044657,120]
[377250037,1754306573844,-1329.47,0.00044657,120]
[377250038,1754306573876,-3263.94070023,0.00044657,120]
[377250039,1754306573909,-1517.54796407,0.00044657,120]
[377250040,1754306573942,-29546.2723,0.00044657,120]
[377250041,1754306573974,-1083.32531519,0.00044657,120]
[377250042,1754306574008,-1234.50087762,0.00044657,120]
[377250043,1754306574043,-6168.27433691,0.00044657,120]
[377250044,1754306574075,-644.94307784,0.00044657,60]
[377250045,1754306574107,-3988.19766215,0.00044657,120]
[377250046,1754306574142,-468.84620968,0.00044657,120]
[377250047,1754306574176,-1242.00748588,0.00044657,120]
[377250048,1754306574213,-859.615558,0.00044657,120]
[377250049,1754306574247,-1315.32657141,0.00044657,14]
[377250050,1754306574280,-1127.21502223,0.00044657,120]
[377250051,1754306574313,-1319.97,0.00044657,120]
[377250052,1754306574346,-550.876965,0.00044657,120]
[377250053,1754306574379,-701.24100234,0.00044657,120]
[377250054,1754306574415,-1026.08547023,0.00044657,120]
[377250055,1754306574448,-3654.57004921,0.00044657,120]
[377250056,1754306574480,-651.16064292,0.00044657,120]
[377250057,1754306574512,-6352.81855102,0.00044657,120]
[377250058,1754306574543,-992.44158358,0.00044657,120]
[377250059,1754306574577,-1072.05701102,0.00044657,120]
[377250060,1754306574614,-452.82818099,0.00044657,120]
[377250061,1754306574648,-687.3170845,0.00044657,120]
[377250062,1754306574683,-889.41,0.00044657,120]
[377250063,1754306574719,-878.355385,0.00044657,120]
[377250064,1754306574754,-534.67113665,0.00044657,120]
[377250065,1754306575120,-2654.7,0.00044657,120]
[377250066,1754306575175,-893.14610079,0.00044657,120]
[377250067,1754306575212,-811.11642566,0.00044657,120]
[377250068,1754306575247,-200.08107251,0.00044657,120]
[377250069,1754306575281,-558.58810494,0.00044657,120]
[377250070,1754306575316,-528.55,0.00044657,118]
[377250071,1754306575349,-629.01,0.00044657,120]
[377250072,1754306575382,-333.07046921,0.00044716,10]
[377250073,1754306575418,-212.0,0.0004477,30]
[377250074,1754306575450,-208.0,0.0004477,30]
[377250075,1754306575482,-207.0,0.0004477,30]
[377250076,1754306575514,-308.545148,0.000448,27]
[377250077,1754306575547,-775.0,0.000449,30]
[377250078,1754306575583,-400.0,0.0004493,120]
[377250079,1754306575620,-418.33,0.0004493,120]
[377250080,1754306575656,-400.0,0.0004493,120]
[377250081,1754306575691,-941.25,0.0004493,120]
[377250082,1754306575726,-429.83,0.0004493,120]
[377250083,1754306575761,-275.29312429,0.0004493,120]
[377250084,1754306575796,-731.88,0.0004493,120]
[377250085,1754306575833,-851.42,0.0004493,120]
[377250086,1754306575866,-461.57,0.0004493,120]
[377250087,1754306575899,-1138.15,0.0004493,120]
[377250088,1754306575932,-628.84,0.0004493,120]
[377250089,1754306575966,-400.0,0.0004493,120]
[377250090,1754306576000,-400.0,0.0004493,120]
[377250091,1754306576033,-400.0,0.0004493,120]
[377250092,1754306576066,-400.0,0.0004493,120]
[377250093,1754306576098,-482.18,0.0004493,120]
[377250094,1754306576130,-432.02,0.0004493,120]
[377250095,1754306576162,-1316.03,0.0004493,120]
[377250096,1754306576194,-400.0,0.0004493,120]
[377250097,1754306576227,-400.0,0.0004493,120]
[377250098,1754306576259,-560.27,0.0004493,120]
[377250099,1754306576291,-400.0,0.0004493,120]
[377250100,1754306576321,-400.0,0.0004493,120]
[377250101,1754306576354,-408.46,0.0004493,120]
[377250102,1754306576384,-516.63,0.0004493,120]
[377250103,1754306576422,-400.0,0.0004493,120]
[377250104,1754306576456,-497.81,0.0004493,120]
[377250105,1754306576493,-400.0,0.0004493,120]
[377250106,1754306576524,-500.88,0.0004493,120]
[377250107,1754306576557,-400.0,0.0004493,120]
[377250108,1754306576589,-850.7,0.0004493,120]
[377250109,1754306576621,-400.0,0.0004493,120]
[377250110,1754306576652,-689.37,0.0004493,120]
[377250111,1754306576685,-400.0,0.0004493,120]
[377250112,1754306576717,-1068.66,0.0004493,120]
[377250113,1754306576750,-400.0,0.0004493,120]
[377250114,1754306576786,-3713.81,0.0004493,120]
[377250115,1754306576823,-400.0,0.0004493,120]
[377250116,1754306576858,-737.42,0.0004493,120]
[377250117,1754306576891,-400.0,0.0004493,120]
[377250118,1754306576926,-400.0,0.0004493,120]
[377250119,1754306576958,-430.1,0.0004493,120]
[377250120,1754306576991,-400.0,0.0004493,120]
[377250121,1754306577022,-661.25,0.0004493,120]
[377250122,1754306577054,-837.99,0.0004493,120]
[377250123,1754306577086,-1715.94,0.0004493,120]
[377250124,1754306577117,-717.42,0.0004493,120]
[377250125,1754306577149,-793.32,0.0004493,120]
[377250126,1754306577182,-506.84,0.0004493,120]
[377250127,1754306577215,-504.77,0.0004493,120]
[377250128,1754306577247,-3337.65,0.0004493,120]
[377250129,1754306577279,-400.0,0.0004493,120]
[377250130,1754306577311,-450.18,0.0004493,120]
[377250131,1754306577344,-529.75,0.0004493,120]
[377250132,1754306577448,-400.0,0.0004493,120]
[377250133,1754306577483,-420.77,0.0004493,120]
[377250134,1754306577516,-400.0,0.0004493,120]
[377250135,1754306577549,-400.0,0.0004493,120]
[377250136,1754306577582,-422.93,0.0004493,120]
[377250137,1754306577615,-1808.3,0.0004493,120]
[377250138,1754306577648,-400.0,0.0004493,120]
[377250139,1754306577681,-400.0,0.0004493,120]
[377250140,1754306577714,-463.37,0.0004493,120]
[377250141,1754306577748,-731.94,0.0004493,120]
[377250142,1754306577785,-400.0,0.0004493,120]
[377250143,1754306577824,-1103.61,0.0004493,120]
[377250144,1754306577859,-2963.19,0.0004493,120]
[377250145,1754306577893,-400.0,0.0004493,120]
[377250146,1754306577927,-400.0,0.0004493,120]
[377250147,1754306577962,-455.31,0.0004493,120]
[377250148,1754306577995,-400.0,0.0004493,120]
[377250149,1754306578028,-918.79,0.0004493,30]
[377250150,1754306578060,-866.27,0.0004493,120]
[377250151,1754306578092,-400.0,0.0004493,120]
[377250152,1754306578122,-823.73,0.0004493,120]
[377250153,1754306578153,-537.09,0.0004493,120]
[377250154,1754306578184,-471.72,0.0004493,120]
[377250155,1754306578216,-1440.9,0.0004493,120]
[377250156,1754306578248,-400.0,0.0004493,120]
[377250157,1754306578278,-528.83,0.0004493,120]
[377250158,1754306578309,-736.02,0.0004493,120]
[377250159,1754306578343,-498.01,0.0004493,120]
[377250161,1754306578376,-491.0,0.0004493,120]
[377250162,1754306578408,-400.0,0.0004493,120]
[377250163,1754306578439,-867.42,0.0004493,120]
[377250164,1754306578472,-400.0,0.0004493,120]
[377250165,1754306578504,-1439.92,0.0004493,120]
[377250166,1754306578536,-1490.04,0.0004493,120]
[377250167,1754306578569,-1335.12,0.0004493,120]
[377250168,1754306578602,-845.3,0.0004493,120]
[377250169,1754306578634,-440.69239796,0.0004493,120]
[377250170,1754306578666,-400.0,0.0004493,120]
[377250171,1754306578699,-1408.32,0.0004493,120]
[377250172,1754306578733,-465.07,0.0004493,120]
[377250173,1754306578767,-400.0,0.0004493,120]
[377250174,1754306578802,-400.0,0.0004493,120]
[377250175,1754306578836,-2505.56745147,0.00044948,54]
[377250176,1754306578870,-2110.0,0.00044965,30]
[377250177,1754306578906,-50000.0,0.00045,45]
[377250178,1754306578942,-50000.0,0.00045,55]
[377250179,1754306578976,-30147.48296138,0.00045,120]
[377250180,1754306579010,-961753.77154281,0.00045,15]
[377250181,1754306582195,1015.61041735,0.00029041,120]
[377250182,1754306584081,207.94510731,0.0002846,120]
[377250183,1754306586293,-1000.0,0.00038,20]
[377250184,1754306586326,-1000.0,0.00038,20]
[377250185,1754306586362,-1000.0,0.00038,20]
[377250186,1754306586397,-571.0,0.00038,20]
[377250187,1754306586516,-342.726105,0.00038904,14]
[377250188,1754306586584,-342.726105,0.00039178,14]
[377250189,1754306586649,-342.726105,0.00039452,14]
[377250190,1754306586713,-342.726105,0.00039726,14]
[377250191,1754306586779,-342.726105,0.0004,14]
[377250192,1754306586817,-407.03,0.00040039,14]
[377250193,1754306586879,-342.726105,0.00040273,14]
[377250194,1754306586914,-342.726105,0.00040273,14]
[377250195,1754306586993,-342.726105,0.00040547,14]
[377250196,1754306587028,-342.726105,0.00040547,14]
[377250197,1754306587064,-3122.47320554,0.00040766,120]
[377250198,1754306587127,-342.726105,0.00040821,14]
[377250199,1754306587160,-342.726105,0.00040821,14]
[377250200,1754306587198,-407.03,0.00041013,14]
[377250201,1754306587261,-342.726105,0.00041095,14]
[377250202,1754306587297,-342.726105,0.00041095,14]
[377250203,1754306587360,-342.726105,0.00041369,14]
[377250204,1754306587394,-342.726109,0.00041369,14]
[377250205,1754306587519,-271.35,0.00042056,14]
[377250206,1754306587553,-271.35,0.00042125,14]
[377250207,1754306587627,-271.35,0.00042194,14]
[377250208,1754306587844,-1542.48,0.00043835,120]
[377250209,1754306587879,-1242.39,0.00043835,120]
[377250210,1754306587917,-1343.86,0.00043835,120]
[377250211,1754306587950,-876.68,0.00043835,120]
[377250212,1754306587983,-912.37,0.00043835,120]
[377250213,1754306588016,-1105.66,0.00043835,120]
[377250214,1754306588047,-640.74,0.00043835,120]
[377250215,1754306588079,-3615.95,0.00043835,120]
[377250216,1754306588114,-411.2,0.00043835,120]
[377250217,1754306588145,-581.56,0.00043835,120]
[377250218,1754306588177,-2307.64,0.00043835,120]
[377250219,1754306588208,-540.98,0.00043835,120]
[377250220,1754306588241,-466.17,0.00043835,120]
[377250221,1754306588272,-400.0,0.00043835,120]
[377250222,1754306588303,-812.07,0.00043835,120]
[377250223,1754306588338,-892.29,0.00043835,120]
[377250224,1754306588371,-512.04,0.00043835,120]
[377250225,1754306588405,-2023.77,0.00043835,120]
[377250226,1754306588439,-731.79,0.00044108,120]
[377250227,1754306588471,-400.0,0.00044108,120]
[377250228,1754306588504,-598.34,0.00044108,120]
[377250229,1754306588538,-400.0,0.00044108,120]
[377250230,1754306588578,-962.73,0.00044108,120]
[377250231,1754306588614,-1542.48,0.00044109,120]
[377250232,1754306588648,-1242.39,0.00044109,120]
[377250233,1754306588989,-876.68,0.00044109,120]
[377250234,1754306589024,-1343.86,0.00044109,120]
[377250235,1754306589057,-912.37,0.00044109,120]
[377250236,1754306589091,-1105.66,0.00044109,120]
[377250237,1754306589121,-640.74,0.00044109,120]
[377250238,1754306589152,-3615.95,0.00044109,120]
[377250239,1754306589183,-411.2,0.00044109,120]
[377250240,1754306589214,-581.56,0.00044109,120]
[377250241,1754306589245,-2307.64,0.00044109,120]
[377250242,1754306589276,-466.17,0.00044109,120]
[377250243,1754306589308,-540.98,0.00044109,120]
[377250244,1754306589340,-400.0,0.00044109,120]
[377250245,1754306589372,-812.07,0.00044109,120]
[377250246,1754306589404,-892.29,0.00044109,120]
[377250247,1754306589435,-512.04,0.00044109,120]
[377250248,1754306589468,-2023.77,0.00044109,120]
[377250249,1754306589503,-731.79,0.00044382,120]
[377250250,1754306589536,-400.0,0.00044382,120]
[377250251,1754306589572,-598.34,0.00044382,120]
[377250252,1754306589606,-400.0,0.00044382,120]
[377250253,1754306589638,-962.73,0.00044382,120]
[377250254,1754306589671,-1542.48,0.00044383,120]
[377250255,1754306589704,-1242.39,0.00044383,120]
[377250256,1754306589737,-876.68,0.00044383,120]
[377250257,1754306589770,-1343.86,0.00044383,120]
[377250258,1754306589806,-912.37,0.00044383,120]
[377250259,1754306589840,-1105.66,0.00044383,120]
[377250260,1754306589877,-640.74,0.00044383,120]
[377250261,1754306589911,-3615.95,0.00044383,120]
[377250262,1754306589945,-411.2,0.00044383,120]
[377250263,1754306589978,-581.56,0.00044383,120]
[377250264,1754306590011,-2307.64,0.00044383,120]
[377250265,1754306590043,-466.17,0.00044383,120]
[377250266,1754306590075,-540.98,0.00044383,120]
[377250267,1754306590107,-289.92037115,0.00044383,120]
[377250268,1754306590139,-812.07,0.00044383,120]
[377250269,1754306590173,-892.29,0.00044383,120]
[377250270,1754306590210,-512.04,0.00044383,120]
[377250271,1754306590244,-2023.77,0.00044383,120]
[377250272,1754306590277,-500.0,0.00044552,120]
[377250273,1754306590309,-500.0,0.00044552,120]
[377250274,1754306590341,-500.0,0.00044552,120]
[377250275,1754306590373,-500.0,0.00044552,120]
[377250276,1754306590405,-500.0,0.00044552,120]
[377250277,1754306590436,-500.0,0.00044552,120]
[377250278,1754306590468,-500.0,0.00044552,120]
[377250279,1754306590499,-500.0,0.00044552,120]
[377250280,1754306590532,-500.0,0.00044552,120]
[377250281,1754306590563,-500.0,0.00044552,120]
[377250282,1754306590594,-500.0,0.00044552,120]
[377250283,1754306590626,-500.0,0.00044552,120]
[377250284,1754306590658,-500.0,0.00044552,120]
[377250285,1754306590690,-500.0,0.00044552,120]
[377250286,1754306590723,-500.0,0.00044552,120]
[377250287,1754306590756,-500.0,0.00044552,120]
[377250288,1754306590787,-500.0,0.00044552,120]
[377250289,1754306590820,-500.0,0.00044552,120]
[377250290,1754306590852,-500.0,0.00044552,120]
[377250291,1754306590884,-500.0,0.00044552,120]
[377250292,1754306590914,-500.0,0.00044552,120]
[377250293,1754306590946,-500.0,0.00044552,120]
[377250294,1754306590977,-500.0,0.00044552,120]
[377250295,1754306591011,-500.0,0.00044552,120]
[377250296,1754306591047,-500.0,0.00044552,120]
[377250297,1754306591082,-500.0,0.00044552,120]
[377250298,1754306591114,-500.0,0.00044552,120]
[377250299,1754306591147,-500.0,0.00044552,120]
[377250300,1754306591180,-500.0,0.00044552,120]
[377250301,1754306591212,-500.0,0.00044552,120]
[377250302,1754306591244,-500.0,0.00044552,120]
[377250303,1754306591275,-500.0,0.00044552,120]
[377250304,1754306591306,-500.0,0.00044552,120]
[377250305,1754306591339,-500.0,0.00044552,120]
[377250306,1754306591370,-500.0,0.00044552,120]
[377250307,1754306591404,-500.0,0.00044552,120]
[377250308,1754306591439,-500.0,0.00044552,120]
[377250309,1754306591472,-500.0,0.00044552,120]
[377250310,1754306591508,-500.0,0.00044552,120]
[377250311,1754306591542,-500.0,0.00044552,120]
[377250312,1754306591578,-500.0,0.00044552,120]
[377250313,1754306591613,-500.0,0.00044552,120]
[377250314,1754306591646,-500.0,0.00044552,120]
[377250315,1754306591679,-500.0,0.00044552,120]
[377250316,1754306591715,-500.0,0.00044552,120]
[377250317,1754306591751,-731.79,0.00044656,120]
[377250318,1754306592150,-400.0,0.00044656,120]
[377250319,1754306592185,-400.0,0.00044656,120]
[377250320,1754306592220,-598.34,0.00044656,120]
[377250321,1754306592253,-962.73,0.00044656,120]
[377250322,1754306592287,-1542.51708505,0.00044657,120]
[377250323,1754306592320,-1242.52485391,0.00044657,120]
[377250324,1754306592353,-876.82505859,0.00044657,120]
[377250325,1754306592386,-1344.08434671,0.00044657,120]
[377250326,1754306592422,-912.46543866,0.00044657,120]
[377250327,1754306592454,-1105.75200885,0.00044657,120]
[377250328,1754306592489,-640.83,0.00044657,120]
[377250329,1754306592525,-3615.96897058,0.00044657,120]
[377250330,1754306592562,-411.4,0.00044657,120]
[377250331,1754306592596,-581.57912654,0.00044657,120]
[377250332,1754306592630,-2307.73021269,0.00044657,120]
[377250333,1754306592663,-466.33125938,0.00044657,120]
[377250334,1754306592698,-541.02502444,0.00044657,120]
[377250335,1754306592731,-812.12113497,0.00044657,120]
[377250336,1754306592764,-892.29209777,0.00044657,120]
[377250337,1754306592798,-512.21826646,0.00044657,120]
[377250338,1754306592833,-2023.85625427,0.00044657,120]
[377250339,1754306592869,-731.79,0.0004493,120]
[377250340,1754306592903,-400.0,0.0004493,120]
[377250341,1754306592937,-400.0,0.0004493,120]
[377250342,1754306592972,-598.34,0.0004493,120]
[377250343,1754306593006,-962.73,0.0004493,120]
[377250344,1754306593040,-3424673.01521972,0.00045,15]
[377250345,1754306593073,-486.06739081,0.00045,120]
[377250346,1754306593106,-371.80953503,0.00045,120]
[377250347,1754306593138,-524.48524192,0.00045,120]
[377250348,1754306593171,-209.95833796,0.00045,120]
[377250349,1754306593204,-1863.33514451,0.00045,120]
[377250350,1754306593238,-264.28950242,0.00045,120]
[377250351,1754306593273,-516.7055503,0.00045,120]
[377250352,1754306593309,-223.33369091,0.00045,120]
[377250353,1754306593343,-1168.5420667,0.00045,120]
[377250354,1754306593374,-505.22807118,0.00045,120]
[377250355,1754306593406,-1080.07696159,0.00045,30]
[377250356,1754306593437,-597.2141027,0.00045,10]
[377250357,1754306593468,-151.0,0.00045,120]
[377250358,1754306593502,-963.22546012,0.00045,30]
[377250359,1754306593535,-921.47,0.0004505,120]
[377250360,1754306593570,-370.5,0.00045067,120]
[377250361,1754306593603,-504.0,0.00045074,14]
[377250362,1754306593636,-400.0,0.00045204,120]
[377250363,1754306593668,-418.33,0.00045204,120]
[377250364,1754306593700,-366.4392352,0.00045204,120]
[377250365,1754306593732,-941.25,0.00045204,120]
[377250366,1754306593765,-429.83,0.00045204,120]
[377250367,1754306593797,-731.88,0.00045204,120]
[377250368,1754306593829,-851.42,0.00045204,120]
[377250369,1754306593864,-461.57,0.00045204,120]
[377250370,1754306593897,-1138.15,0.00045204,120]
[377250371,1754306593938,-628.84,0.00045204,120]
[377250372,1754306593982,-400.0,0.00045204,120]
[377250373,1754306594015,-400.0,0.00045204,120]
[377250374,1754306594048,-400.0,0.00045204,120]
[377250375,1754306594080,-168.43891164,0.00045204,120]
[377250376,1754306594112,-482.18,0.00045204,120]
[377250377,1754306594144,-432.02,0.00045204,120]
[377250378,1754306594176,-1316.03,0.00045204,120]
[377250379,1754306594207,-165.16959768,0.00045204,120]
[377250380,1754306594239,-400.0,0.00045204,120]
[377250381,1754306594272,-560.27,0.00045204,120]
[377250382,1754306594306,-400.0,0.00045204,120]
[377250383,1754306594339,-400.0,0.00045204,120]
[377250384,1754306594455,-408.46,0.00045204,120]
[377250385,1754306594488,-516.63,0.00045204,120]
[377250386,1754306594521,-400.0,0.00045204,120]
[377250387,1754306594554,-497.81,0.00045204,120]
[377250388,1754306594586,-400.0,0.00045204,120]
[377250389,1754306594620,-500.88,0.00045204,120]
[377250390,1754306594652,-400.0,0.00045204,120]
[377250391,1754306594686,-850.7,0.00045204,120]
[377250392,1754306594718,-400.0,0.00045204,120]
[377250393,1754306594751,-689.37,0.00045204,120]
[377250394,1754306594786,-400.0,0.00045204,120]
[377250395,1754306594821,-1068.66,0.00045204,120]
[377250396,1754306594855,-400.0,0.00045204,120]
[377250397,1754306594889,-400.0,0.00045204,120]
[377250398,1754306594924,-737.42,0.00045204,120]
[377250399,1754306594957,-400.0,0.00045204,120]
[377250400,1754306594990,-400.0,0.00045204,120]
[377250401,1754306595023,-430.1,0.00045204,120]
[377250402,1754306595055,-400.0,0.00045204,120]
[377250403,1754306595089,-661.25,0.00045204,120]
[377250404,1754306595121,-837.99,0.00045204,120]
[377250405,1754306595153,-1715.94,0.00045204,120]
[377250406,1754306595185,-717.42,0.00045204,120]
[377250407,1754306595217,-793.32,0.00045204,120]
[377250408,1754306595248,-506.84,0.00045204,120]
[377250409,1754306595280,-504.77,0.00045204,120]
[377250410,1754306595312,-3337.65,0.00045204,120]
[377250411,1754306595347,-400.0,0.00045204,120]
[377250412,1754306595378,-450.18,0.00045204,120]
[377250413,1754306595411,-529.75,0.00045204,120]
[377250414,1754306595443,-400.0,0.00045204,120]
[377250415,1754306595474,-420.77,0.00045204,120]
[377250416,1754306595507,-400.0,0.00045204,120]
[377250417,1754306595540,-400.0,0.00045204,120]
[377250418,1754306595574,-422.93,0.00045204,120]
[377250419,1754306595614,-1808.3,0.00045204,120]
[377250420,1754306595652,-514.77967426,0.00045204,120]
[377250421,1754306595688,-400.0,0.00045204,120]
[377250422,1754306595723,-463.37,0.00045204,120]
[377250423,1754306595758,-731.94,0.00045204,120]
[377250424,1754306595792,-162.73635563,0.00045204,120]
[377250425,1754306595830,-1103.61,0.00045204,120]
[377250426,1754306595866,-2963.19,0.00045204,120]
[377250427,1754306595901,-400.0,0.00045204,120]
[377250428,1754306595938,-400.0,0.00045204,120]
[377250429,1754306595973,-455.31,0.00045204,120]
[377250430,1754306596007,-400.0,0.00045204,120]
[377250431,1754306596042,-918.79,0.00045204,30]
[377250432,1754306596076,-866.27,0.00045204,120]
[377250433,1754306596109,-400.0,0.00045204,120]
[377250434,1754306596140,-823.73,0.00045204,120]
[377250435,1754306596172,-537.09,0.00045204,120]
[377250436,1754306596204,-471.72,0.00045204,120]
[377250437,1754306596236,-1440.9,0.00045204,120]
[377250438,1754306596267,-528.83,0.00045204,120]
[377250439,1754306596300,-736.02,0.00045204,120]
[377250440,1754306596335,-498.01,0.00045204,120]
[377250441,1754306596368,-491.0,0.00045204,120]
[377250442,1754306596403,-369.71201456,0.00045204,120]
[377250443,1754306596436,-867.42,0.00045204,120]
[377250444,1754306596470,-400.0,0.00045204,120]
[377250445,1754306596505,-1439.92,0.00045204,120]
[377250446,1754306596538,-1490.04,0.00045204,120]
[377250447,1754306596571,-1335.12,0.00045204,120]
[377250448,1754306596604,-845.3,0.00045204,120]
[377250449,1754306596638,-400.0,0.00045204,120]
[377250450,1754306596671,-1408.32,0.00045204,120]
[377250451,1754306596704,-465.07,0.00045204,120]